Cogmind - Beta 16.1 @@@ ROGUE MODE // 2026.04.13 @ 22:31:53 Player: Dylab Result: Destroyed by G-50 Soldier with Heavy Laser Performance ------------- Evolutions (2) 1000 Regions Visited (4) 800 Robots Destroyed (40) 200 Value Destroyed (926) 926 Prototype IDs (1) 20 Alien Tech Used (0) 0 Bonus (0) 0 TOTAL SCORE: 2946 Bonus ------- None Cogmind --------- Core Integrity 0/550 Matter 173/300 Energy 71/100 System Corruption 0% Temperature Cool (15) Movement Flying (32) Location -8/Materials Parts ------- > --- POWER (1) -------- (None) > --- PROPULSION (4) --- Improved Flight Unit Improved Flight Unit Cesium-ion Thruster > --- UTILITY (4) ------ Advanced Visual Processing Unit Terrain Scan Processor > --- WEAPON (2) ------- (None) > --- INVENTORY (5) ---- Ion Engine Light Ion Engine Aluminum Leg Aluminum Leg Terrain Scan Processor Peak State ------------ > --- POWER ------------ Improved Ion Engine > --- PROPULSION ------- Light Treads Light Treads > --- UTILITY ---------- Cooling System Improved Terrain Scanner Terrain Scan Processor Medium Armor Plating > --- WEAPON ----------- EM Shotgun Medium Laser > --- INVENTORY -------- Ion Engine Light Ion Engine Aluminum Leg Aluminum Leg Small Laser [Rating: 16] Favorites ----------- Power Ion Engine Engine Ion Engine Propulsion Light Treads Treads Light Treads Leg Aluminum Leg Flight Unit Improved Flight Unit Utility Improved Terrain Scanner Device Improved Terrain Scanner Storage Small Storage Unit Processor Terrain Scan Processor Protection Medium Armor Plating Weapon Medium Laser Energy Gun Medium Laser Ballistic Cannon Flak Cannon Impact Weapon Hammer Build | -11 -10 -9 -9 -8 ------- Run | Yrd Mat Mat Min Mat Slots Evolved 4 | . . 2 . 2 Power . | . . . . . Propulsion 2 | . . . . 2 Utility 2 | . . 2 . . Weapon . | . . . . . Parts Attached 27 | 10 . 7 2 8 Power 4 | 1 . 3 . . Engine 4 | 1 . 3 . . Core . | . . . . . Reactor . | . . . . . Propulsion 8 | 4 . . 1 3 Treads 2 | 2 . . . . Leg 3 | 2 . . 1 . Wheel . | . . . . . Hover . | . . . . . Flight 3 | . . . . 3 Utility 9 | 2 . 3 1 3 Device 5 | 1 . 1 1 2 Storage 1 | 1 . . . . Processor 2 | . . 1 . 1 Hackware . | . . . . . Protection 1 | . . 1 . . Artifact . | . . . . . Weapon 6 | 3 . 1 . 2 Energy Gun 4 | 3 . 1 . . Energy Cannon . | . . . . . Ballistic Gun . | . . . . . Ballistic Cannon 1 | . . . . 1 Launcher . | . . . . . Special Weapon . | . . . . . Impact Weapon 1 | . . . . 1 Slashing Weapon . | . . . . . Piercing Weapon . | . . . . . Special Melee Weapon . | . . . . . Unidentified Prototypes 1 | . . . . 1 Parts Lost 14 | . . 1 8 5 Power 1 | . . . 1 . Propulsion 3 | . . . 3 . Utility 5 | . . 1 2 2 Weapon 5 | . . . 2 3 Highest Loss Streak 4 | . . 1 4 3 To Critical Strikes . | . . . . . Average Backups 4 | 2 4 4 4 5 Power 1 | . 1 1 2 2 Propulsion 1 | 1 2 2 2 2 Utility . | . . . . 1 Weapon . | . 1 1 . . Tool/Special . | . . . . . Unused Backups 1 | . . . . 1 Power . | . . . . . Propulsion . | . . . . . Utility 1 | . . . . 1 Weapon . | . . . . . Tool/Special . | . . . . . Average Slot Usage (%) 76 | . 100 96 68 31 Engine 8 | . 14 11 9 . Treads 16 | . 28 22 11 . Device 13 | . 14 14 18 5 Storage 5 | . 14 7 . . Processor 8 | . . 8 11 14 Protection 3 | . . 10 . . Energy Gun 17 | . 28 22 16 . Impact Weapon 1 | . . . . 7 Peak Build Rating 16 | 9 9 16 14 15 Average Rating 10 | 6 9 13 11 8 On Entrance 7 | . 9 9 14 3 Avg Prop Armor Cover (%) . | . . . . . Naked Turns . | . . . . . Heaviest Build 24 | 15 15 24 15 10 Greatest Support 40 | 40 40 40 40 15 Greatest Overweight (x) 4 | 1 . . 4 3 Average Overweight (x) . | . . . . . Largest Inventory Capacity 8 | 8 8 8 5 5 Average Capacity 6 | 7 8 6 5 5 Most Carried 6 | 4 4 6 5 5 Average Carried 4 | 2 4 4 4 5 Final Capacity 8 | 8 8 5 5 5 Final Carried 5 | 4 4 5 5 5 Class Distribution -------------------- 100% | Mutant Dominant Class ---------------- Mutant | -10/Materials Mutant | -9/Materials Mutant | -9/Mines Mutant | -8/Materials Resources | -11 -10 -9 -9 -8 ----------- Run | Yrd Mat Mat Min Mat Matter Collected 482 | 300 54 50 43 35 Remotely . | . . . . . Salvage Created 1286 | 153 189 358 310 276 Parts 73 | 8 8 27 20 10 Haulers Intercepted . | . . . . . Recyclers Shooed . | . . . . . Parts Field Recycled . | . . . . . Retrieved Matter . | . . . . . Parts Self-Destructed . | . . . . . Prevented . | . . . . . Parts Restored . | . . . . . Kills | -11 -10 -9 -9 -8 ------- Run | Yrd Mat Mat Min Mat Combat Hostiles Destroyed 21 | . 3 5 7 6 Melee 2 | . . . . 2 Guns 11 | . 2 3 6 . Cannons 2 | . . . . 2 AOE 2 | . . 1 1 . Classes Destroyed 10 | 3 2 3 . 2 Worker 4 | 2 . 2 . . Builder 3 | . . 2 1 . Tunneler 5 | 3 . . 2 . Recycler 2 | 1 . 1 . . Operator 1 | . . . . 1 Watcher 4 | . 2 2 . . Swarmer 2 | . . 2 . . Grunt 14 | . 3 2 7 2 Sentry 4 | . . 1 . 3 Hunter 1 | . . . . 1 Best Kill Streak 7 | 3 3 7 5 2 Combat Bots Only 4 | . 3 4 3 2 Max Kills in Single Turn 3 | 1 1 1 3 1 Gunslinging . | . . . . . Exploded 1 | . . 1 1 . Melee 1 | . . . . 1 Uniques/NPCs Destroyed . | . . . . . Combat | -11 -10 -9 -9 -8 -------- Run | Yrd Mat Mat Min Mat Hostile Shots Fired 251 | . 40 48 63 100 Missed 78 | . 7 16 17 38 Hits 173 | . 33 32 46 62 Projectile 173 | . 33 32 46 62 Critical Strikes 5 | . . 2 1 2 Damage Taken 2240 | . 369 349 591 931 Core 997 | . 90 59 287 561 Absorbed by Shields . | . . . . . Core Remaining (%) 59 | 100 64 . 13 . Volleys Fired 108 | 10 16 26 36 20 Largest 2 | 2 2 2 2 1 Hottest 100 | 100 100 100 95 40 Shots Fired 162 | 20 29 51 42 20 Gun 145 | 20 29 51 42 3 Cannon 17 | . . . . 17 Launcher . | . . . . . Special . | . . . . . Kinetic 17 | . . . . 17 Thermal 126 | 20 29 38 36 3 Explosive . | . . . . . Electromagnetic 19 | . . 13 6 . Robot Hit Streak 12 | 10 12 9 7 7 Robot Miss Streak 7 | 3 2 5 2 7 Penetration Max . | . . . . . Secondary Targets 4 | . 1 2 1 . Max Gunslinging Chain 1 | . 1 1 1 . Shots Hit Robots 124 | 12 16 33 27 36 Core Hits 71 | 7 7 16 18 23 Critical Kills . | . . . . . Critical Parts Destroyed 3 | . . . . 3 Critical Strikes 7 | . 1 3 . 3 Burn 4 | . 1 3 . . Smash 3 | . . . . 3 Melee Attacks 22 | . . . . 22 Impact 22 | . . . . 22 Slashing . | . . . . . Piercing . | . . . . . Sneak Attacks . | . . . . . Combat Hostiles . | . . . . . Follow-up Attacks . | . . . . . Damage Inflicted 2143 | 153 248 591 418 733 Guns 1152 | 153 248 436 304 11 Cannons 315 | . . . . 315 Explosions 265 | . . 155 110 . Melee 407 | . . . . 407 Ramming 4 | . . . 4 . Kinetic 315 | . . . . 315 Thermal 1270 | 153 248 462 396 11 Explosive . | . . . . . Electromagnetic 147 | . . 129 18 . Impact 407 | . . . . 407 Slashing . | . . . . . Piercing . | . . . . . Highest Corruption . | . . . . . Average Corruption . | . . . . . Corruption Purged . | . . . . . Corruption Blocked . | . . . . . Overload Shots . | . . . . . Overflow Damage 99 | . . . 17 82 Projectiles . | . . . . . Explosions 17 | . . . 17 . Melee 82 | . . . . 82 Knockbacks 2 | . . . . 2 Impact 2 | . . . . 2 Kinetic . | . . . . . Secondary . | . . . . . Self-Inflicted Damage 45 | . . 6 39 . Shots 2 | . . 1 1 . Rammed 1 | . . . 1 . Targets Rammed 1 | . . . 1 . Kicked . | . . . . . Crushed . | . . . . . Highest Temperature 560 | 156 560 327 7 23 Average Temperature 154 | 69 269 111 3 10 Received Heat Transfer 1005 | . 198 117 330 360 Effects 8 | . 8 . . . Shutdowns 3 | . 3 . . . Energy Bleed 1 | . 1 . . . Interference 3 | . 3 . . . Matter Decay 1 | . 1 . . . Siege Activations . | . . . . . Martial Activations . | . . . . . Shielding Activations . | . . . . . Robots Disrupted . | . . . . . Combat Hostiles . | . . . . . Robots Corrupted 3 | . . . . 3 Combat Hostiles 2 | . . . . 2 Parts Fried 5 | . . . . 5 Impact Corruptions 5 | . . . . 5 Robots Melted 2 | . 1 1 . . Combat Hostiles 2 | . 1 1 . . Parts Melted 6 | . 4 2 . . Heat Transferred 3639 | 444 814 1447 909 25 Parts Sabotaged . | . . . . . Parts Stolen . | . . . . . Parts Stripped . | . . . . . Power Chain Reactions 4 | . . 3 1 . Alert | -11 -10 -9 -9 -8 ------- Run | Yrd Mat Mat Min Mat Maximum Alert Level . | . . . . . Low Security (%) 100 | 100 100 100 100 100 Level 1 . | . . . . . Level 2 . | . . . . . Level 3 . | . . . . . Level 4 . | . . . . . Level 5 . | . . . . . High Security . | . . . . . Max Security . | . . . . . Peak Influence 145 | 15 51 145 60 55 Initial 49 | . . 16 49 19 Average 15 | 1 6 12 23 25 Influence Increases 708 | 30 92 213 178 195 Destroy 0b10 Robot/C 420 | . 60 100 140 120 Destroy 0b10 Robot/NC 95 | 30 10 35 15 5 Destroy Leader 88 | . 14 14 20 40 Successful Hack 14 | . 7 7 . . Disable Machine 15 | . . 15 . . Destroy Structure 16 | . 1 12 3 . Lose Combat Pursuer 60 | . . 30 . 30 Influence Decreases 678 | 30 51 127 255 215 Entered New Map 134 | . . 25 78 31 Time Decay 429 | 30 51 92 117 139 Lost Part 115 | . . 10 60 45 Squads Dispatched 2 | . 1 . 1 . Investigation 1 | . 1 . . . Extermination . | . . . . . Reinforcement 1 | . . . 1 . Assault . | . . . . . Garrison . | . . . . . Intercept . | . . . . . Searches Triggered . | . . . . . Construction Impeded 1 | . . . 1 . Haulers Reinforced . | . . . . . Active Scanning Responses . | . . . . . Cargo Convoy Interrupts . | . . . . . Stealth | -11 -10 -9 -9 -8 --------- Run | Yrd Mat Mat Min Mat Distress Signals 4 | . . 3 . 1 Communications Jammed . | . . . . . Distress Signals . | . . . . . Times Spotted 46 | . 5 14 7 20 Peak Tracking Total 5 | . 3 5 3 5 Tactical Retreats 2 | . . 1 . 1 Traps | -11 -10 -9 -9 -8 ------- Run | Yrd Mat Mat Min Mat Traps Triggered 1 | . 1 . . . Indirectly . | . . . . . Trap Hack Attempts . | . . . . . Triggered . | . . . . . Disarmed . | . . . . . Reprogrammed . | . . . . . Reused . | . . . . . Traps Extracted . | . . . . . Installed . | . . . . . Triggered . | . . . . . Machines | -11 -10 -9 -9 -8 ---------- Run | Yrd Mat Mat Min Mat Machines Disabled 1 | . . 1 . . Max in Single Turn 1 | . . 1 . . Machines Repaired . | . . . . . Machines Dismantled . | . . . . . Machines Sabotaged . | . . . . . Overloaded Fab Kills . | . . . . . Hacking | -11 -10 -9 -9 -8 --------- Run | Yrd Mat Mat Min Mat Machines Accessed 3 | . 1 2 . . Terminals 2 | . 1 1 . . Fabricators . | . . . . . Repair Stations . | . . . . . Recycling Units . | . . . . . Scanalyzers 1 | . . 1 . . Garrison Access . | . . . . . Total Hacks 10 | . 3 7 . . Successful 4 | . 1 3 . . Failed 6 | . 2 4 . . Catastrophic . | . . . . . Database Lockouts . | . . . . . Manual . | . . . . . Terminals 8 | . 3 5 . . Fabricators . | . . . . . Repair Stations . | . . . . . Recycling Units . | . . . . . Scanalyzers 2 | . . 2 . . Garrison Access . | . . . . . Terminal Hacks 2 | . 1 1 . . Branch Access Points 1 | . 1 . . . Zone Layout 1 | . . 1 . . Fabricator Hacks . | . . . . . Repair Station Hacks . | . . . . . Recycling Unit Hacks . | . . . . . Scanalyzer 2 | . . 2 . . Insert Component 1 | . . 1 . . Analyze 1 | . . 1 . . Garrison Access Hacks . | . . . . . Unauthorized Hacks . | . . . . . Terminals . | . . . . . Fabricators . | . . . . . Repair Stations . | . . . . . Recycling Units . | . . . . . Scanalyzers . | . . . . . Garrison Access . | . . . . . Data Cores Recovered 1 | . . . . 1 Used . | . . . . . Hacking Detections 2 | . 1 1 . . Full Trace Events . | . . . . . Feedback Events . | . . . . . Feedback Blocked . | . . . . . Robot Schematics Acquired . | . . . . . Robots Built . | . . . . . Authchips . | . . . . . Time . | . . . . . Total Robot Build Rating . | . . . . . Part Schematics Acquired 1 | . . 1 . . Parts Built . | . . . . . Authchips . | . . . . . Time . | . . . . . Total Part Build Rating . | . . . . . Part Studies Acquired . | . . . . . Parts Repaired . | . . . . . Time . | . . . . . Parts Recycled . | . . . . . Recycled Matter . | . . . . . Retrieved Matter . | . . . . . Retrieved Components . | . . . . . Parts Scanalyzed 1 | . . 1 . . Part Schematics Acquired 1 | . . 1 . . Parts Damaged . | . . . . . Bothacking | -11 -10 -9 -9 -8 ------------ Run | Yrd Mat Mat Min Mat Used RIF Installer . | . . . . . Robots Hacked . | . . . . . Non-combat . | . . . . . Combat . | . . . . . Robot Hacks Applied . | . . . . . Relay Couplers Released . | . . . . . Fabnet Peak Effective % . | . . . . . Robots Rewired . | . . . . . Allies Hacked . | . . . . . Hacks Repelled . | . . . . . Allies | -11 -10 -9 -9 -8 -------- Run | Yrd Mat Mat Min Mat Total Allies . | . . . . . Largest Group . | . . . . . Highest-Rated Group . | . . . . . Highest-Rated Ally . | . . . . . Total Orders . | . . . . . Ally Attacks . | . . . . . Total Damage . | . . . . . Kills . | . . . . . Allies Corrupted . | . . . . . Allies Melted . | . . . . . Intel | -11 -10 -9 -9 -8 ------- Run | Yrd Mat Mat Min Mat Active Infowar (turns) 1183 | 80 278 358 270 197 Optics 197 | . . . . 197 Terrain 986 | 80 278 358 270 . Robot Analysis Total . | . . . . . Derelict Logs Recovered 1 | . . . 1 . Drone Launches . | . . . . . Drone Recoveries . | . . . . . Exploration | -11 -10 -9 -9 -8 ------------- Run | Yrd Mat Mat Min Mat Turns Passed 1584 | 181 313 441 334 315 Spaces Moved 963 | 96 162 221 137 347 Core 333 | 10 . . 71 252 Treads 493 | 55 162 221 55 . Legs 42 | 31 . . 11 . Wheels . | . . . . . Hover . | . . . . . Flight 95 | . . . . 95 Fastest Speed 32 | 50 160 160 50 32 Average Speed 117 | 138 160 160 130 59 Slowest Speed 250 | 160 160 160 250 200 Overloaded Moves . | . . . . . Propulsion Burnouts . | . . . . . Robots Hopped 1 | . . . . 1 Potential Cave-ins . | . . . . . Cave-ins Triggered . | . . . . . Exploration Rate (%) 25 | 4 37 22 32 30 Regions Visited 4 Branch Regions 1 Pre-discovered Areas . | . . . . . Known Exits Taken . | . . . . . Unknown Exits Taken 4 | 1 1 1 1 . Scrap Searched . | . . . . . Spaces Dug . | . . . . . Terrain Destroyed 13 | . . 10 3 . Melee . | . . . . . Projectile . | . . . . . AOE 13 | . . 10 3 . Terrain Rammed . | . . . . . Walls Destroyed . | . . . . . Machines Disabled . | . . . . . Actions | -11 -10 -9 -9 -8 --------- Run | Yrd Mat Mat Min Mat Total 1207 | 121 187 255 247 397 Wait 80 | . 10 . 69 1 Move 957 | 95 161 220 136 345 Hop 1 | . . . . 1 Pick Up 4 | 3 . . 1 . Fast Attach 20 | 8 . 2 2 8 Attach 4 | 2 . 1 1 . Detach 4 | 3 . 1 . . Swap 5 | . . 5 . . Drop 1 | . . . 1 . Fire 108 | 10 16 26 36 20 Melee 22 | . . . . 22 Ram . | . . . . . Kick . | . . . . . Crush 1 | . . . 1 . Escape Stasis . | . . . . . Rewire . | . . . . . Trap . | . . . . . Miscellaneous . | . . . . . Route ------- -11/Scrapyard -10/Materials (discovered 2 exits: *Mat / *Min) -9/Materials -9/Mines -8/Materials History --------- Turn | Location | Event 6 | -11/Scrapyard | Discovered new exit (range 15) 182 | -11/Scrapyard | Entered Materials 301 | -10/Materials | Identified exit to Mines 316 | -10/Materials | Build established: Mutant 422 | -10/Materials | Discovered new exit (range 15) 495 | -10/Materials | Entered another Materials area 495 | -9/Materials | Evolved 2 slots: Utility x2 860 | -9/Materials | Discovered new exit (range 9) 936 | -9/Materials | Entered Mines 1013 | -9/Mines | Excavation squad dispatched 1013 | -9/Mines | A large section of the Mines collapsed 1146 | -9/Mines | Lost 3 parts (2n1w) 1218 | -9/Mines | Core integrity fell below 50% 1236 | -9/Mines | Core integrity fell below 20% 1262 | -9/Mines | Lost 4 parts (1p1n2u) 1265 | -9/Mines | Discovered new exit (range 11) 1270 | -9/Mines | Entered Materials 1270 | -8/Materials | Evolved 2 slots: Propulsion x2 1372 | -8/Materials | Core integrity fell below 50% 1528 | -8/Materials | Core integrity fell below 20% 1585 | -8/Materials | Destroyed by G-50 Soldier with Heavy Laser Last Messages --------------- G-47 Trooper destroyed. Critical hit (Burn: +37). K-01 Serf cleans the Processing Tank. G-47 Trooper destroyed. Critical hit (Burn: +37). K-01 Serf collects debris. R-06 Scavenger collects Imp. Heat Sink. K-01 Serf collects debris. R-06 Scavenger collects Aluminum Leg. K-01 Serf collects debris. Flak Cannon destroyed. K-01 Serf collects debris. Acquired Prototype Flight Unit. Identified Imp. Flight Unit. K-01 Serf collects debris. Hammer destroyed. Acquired Imp. Flight Unit. K-01 Serf collects debris. Microactuators destroyed. Acquired Cesium-ion Thruster. Map ----- +----------------------------------------------------+ | | | | | | | | | | | | | | | | | | | ????#########????????????????????????????????????? | | ????# """ #????????????????????????????????????? | | ????#] """ #????????????????????????????????????? | | ????# """ #????????????????????????????????????? | | ????# #????????????????????????????????????? | | ????# #????????????????????????????????????? | | +####+#######????????????????????????????????????? | | #????????????????????????????????????????? | | #????????????????????????????????????????? | | # ###+#########????????????????????????????###### | | # # = #????????????????????????????# #! | | + # #????????????????????????????# # | | # # """ """ #?????????????????????? ?????# # | | # + """ """ ########################+##### + | | # # """ """ ## T # | | # # """ ## # | | # #[ ! /g @ ## | | # ############## """"" #? | | # ##???????????# """"" """"" #? | | ############# """"" """"""""" #? | | """ """ ## | | * | | ### ######### """"" | | #####?#+#???????# g """"" #### | | ????????????????# # """"" #?###+### | | ????????????????# #a #?# | | ????????????????# # #?# | | ????????????????# # """"" #?# [ | | ???????????????? # """"" ! ! ### ]] | | ??????????????? # """"" / + | | ?????????????? # % !/ ### """ | | ?????????????+####### % ########?# """ | | ????????????????????# """"" #????????# """ | | ???????????????????#" """"" #????????# | | ???????????????????#" """"" #????????# """ | | ????????????????????" #????????# """ | | ????????????????????T #????????# """ | | ????????????????????" """"" #????????# | | ????????????????????? """"" #????????####?## | | ????????????????????? """"" #####+########## | | ?????????????????????????? | +----------------------------------------------------+ Best States ------------- Heat Dissipation 50 Energy Generation 12 Energy Capacity 265 Matter Stores 300 Matter Capacity 300 Sight Range 20 Terrain Scan Range 16 Terrain Scan Density 85 Armor Coverage 225 Melee Speed Boost 20 Evasion (%) 63 Recoil Reduction 2 Item Schematics ----------------- Imp. Terrain Scanner | -9/Materials | Scanalyzed Robot Schematics ------------------ None Fabricated ------------ Nothing Repaired ---------- Nothing Studied --------- None Alien Tech Used ----------------- None Achievements -------------- None Challenges ------------ None Game ------ Seed GyrokineticCooledAxe Manual? 0 Play Time 00:17:25 Cumulative 105.3 hours Start 2026.03.15 @ 20:56:03 End 2026.04.13 @ 22:31:53 Sessions 5 Manual Loads 0 Difficulty Rogue Special Mode None Game No. 85 Rogue 13 Adventurer 3 Explorer 69 Win Type - Total 1 Types 1/0/0/0/0/0/0/0/0/0 Lore% 31 Gallery% 48 Achievement% 35 Wizard Run 0 Options --------- Layout 0 ASCII 0 Keyboard 0 Movement Numpad Keybinds 1 Fullscreen 2 Font 24/Smallcaps Map View 38x28 Zoom Use 98% Tactical HUD 0 Map Filters NONE Filters NONE Steam 1 RUN: ae454426-98e7-429a-a036-9543a4b75386